[Event "Titled Tuesday Blitz November 14 Early 2023"]
[White "Witty_Alien"]
[Black "ploxoi"]
[WhiteElo "2246"]
[BlackElo "2466"]
[Result "1-0"]
[Round "3"]
[TimeControl "180+1"]
[Date "2023.11.14"]
[WhiteClock "0:00:25"]
[BlackClock "0:00:21"]
[Board "198"]

1. e4 {[%clk 0:03:00]}  c5 {[%clk 0:02:58]} 2. Nf3 {[%clk 0:03:00]}  e6 {[%clk 0:02:51]} 3. d4 {[%clk 0:03:00]}  cxd4 {[%clk 0:02:52]} 4. c3 {[%clk 0:03:00]}  Nc6 {[%clk 0:02:53]} 5. cxd4 {[%clk 0:03:00]}  Nf6 {[%clk 0:02:51]} 6. e5 {[%clk 0:02:58]}  Nd5 {[%clk 0:02:50]} 7. Bd3 {[%clk 0:02:59]}  d6 {[%clk 0:02:50]} 8. O-O {[%clk 0:02:59]}  Be7 {[%clk 0:02:50]} 9. Nc3 {[%clk 0:02:54]}  dxe5 {[%clk 0:02:48]} 10. dxe5 {[%clk 0:02:51]}  Nxc3 {[%clk 0:02:48]} 11. bxc3 {[%clk 0:02:51]}  h6 {[%clk 0:02:47]} 12. Re1 {[%clk 0:02:47]}  Qc7 {[%clk 0:02:46]} 13. Nd4 {[%clk 0:02:16]}  a6 {[%clk 0:02:35]} 14. Qh5 {[%clk 0:01:47]}  Bd7 {[%clk 0:02:29]} 15. Rb1 {[%clk 0:01:20]}  Rc8 {[%clk 0:02:24]} 16. Bf4 {[%clk 0:01:09]}  Na5 {[%clk 0:02:16]} 17. Bg6 {[%clk 0:01:01]}  Rf8 {[%clk 0:01:45]} 18. Nf5 {[%clk 0:01:00]}  Nc4 {[%clk 0:00:42]} 19. Rbd1 {[%clk 0:00:34]}  fxg6 {[%clk 0:00:20]} 20. Qxg6+ {[%clk 0:00:25]}  Kd8 {[%clk 0:00:21]} 21. Nxg7 {[%clk 0:00:25]}  Re8 {[%clk 0:00:21]} 22. Nxe6# {[%clk 0:00:25]} 1-0


[Site "https://www.chess.com"]

[Event "Titled Tuesday Blitz November 14 Early 2023"]
[White "crosky"]
[Black "Balla, Tamas-Kristof"]
[BlackFideId "1208497"]
[WhiteElo "2244"]
[BlackElo "2432"]
[Result "0-1"]
[Round "3"]
[TimeControl "180+1"]
[Date "2023.11.14"]
[WhiteClock "0:01:22"]
[BlackClock "0:01:16"]
[Board "200"]

1. c4 {[%clk 0:03:00]}  c5 {[%clk 0:03:00]} 2. g3 {[%clk 0:03:00]}  Nc6 {[%clk 0:03:00]} 3. Bg2 {[%clk 0:03:00]}  g6 {[%clk 0:03:00]} 4. Nc3 {[%clk 0:03:01]}  Bg7 {[%clk 0:03:01]} 5. a3 {[%clk 0:03:02]}  e6 {[%clk 0:02:57]} 6. b4 {[%clk 0:03:02]}  cxb4 {[%clk 0:02:56]} 7. axb4 {[%clk 0:03:03]}  d5 {[%clk 0:02:56]} 8. cxd5 {[%clk 0:02:53]}  exd5 {[%clk 0:02:56]} 9. b5 {[%clk 0:02:54]}  Nce7 {[%clk 0:02:47]} 10. Ba3 {[%clk 0:02:53]}  Nf6 {[%clk 0:02:44]} 11. d4 {[%clk 0:02:46]}  O-O {[%clk 0:02:43]} 12. e3 {[%clk 0:02:45]}  Bg4 {[%clk 0:02:41]} 13. Nge2 {[%clk 0:02:45]}  Rc8 {[%clk 0:02:40]} 14. Qd2 {[%clk 0:02:42]}  Re8 {[%clk 0:02:32]} 15. O-O {[%clk 0:02:42]}  Bf5 {[%clk 0:01:58]} 16. Bc5 {[%clk 0:02:41]}  b6 {[%clk 0:01:56]} 17. Bb4 {[%clk 0:02:42]}  Qd7 {[%clk 0:01:56]} 18. Ra6 {[%clk 0:02:40]}  Ne4 {[%clk 0:01:52]} 19. Nxe4 {[%clk 0:02:34]}  Bxe4 {[%clk 0:01:50]} 20. Rfa1 {[%clk 0:02:31]}  Bxg2 {[%clk 0:01:47]} 21. Kxg2 {[%clk 0:02:32]}  Qxb5 {[%clk 0:01:47]} 22. Rxa7 {[%clk 0:02:30]}  Nf5 {[%clk 0:01:45]} 23. Nf4 {[%clk 0:02:21]}  Rc4 {[%clk 0:01:38]} 24. Nd3 {[%clk 0:02:13]}  Rec8 {[%clk 0:01:36]} 25. Ra8 {[%clk 0:02:10]}  h5 {[%clk 0:01:33]} 26. Rxc8+ {[%clk 0:02:10]}  Rxc8 {[%clk 0:01:33]} 27. h4 {[%clk 0:02:11]}  Rc4 {[%clk 0:01:27]} 28. Ra8+ {[%clk 0:02:08]}  Kh7 {[%clk 0:01:27]} 29. Ra7 {[%clk 0:02:09]}  Qe8 {[%clk 0:01:25]} 30. Rb7 {[%clk 0:02:05]}  Qe4+ {[%clk 0:01:24]} 31. Kg1 {[%clk 0:02:00]}  Nxd4 {[%clk 0:01:19]} 32. exd4 {[%clk 0:01:54]}  Rxd4 {[%clk 0:01:20]} 33. Rxf7 {[%clk 0:01:26]}  Rxd3 {[%clk 0:01:16]} 34. Qb2 {[%clk 0:01:22]}  Rd1+ {[%clk 0:01:16]} 0-1


[Site "https://www.chess.com"]

[Event "Titled Tuesday Blitz November 14 Early 2023"]
[White "Davidson, Kevin"]
[Black "Akylbek2021"]
[WhiteFideId "2056810"]
[WhiteElo "2428"]
[BlackElo "2236"]
[Result "1-0"]
[Round "3"]
[TimeControl "180+1"]
[Date "2023.11.14"]
[WhiteClock "0:00:12"]
[BlackClock "0:00:00"]
[Board "202"]

1. e4 {[%clk 0:03:00]}  e5 {[%clk 0:02:55]} 2. Nf3 {[%clk 0:03:00]}  Nc6 {[%clk 0:02:56]} 3. Bb5 {[%clk 0:03:00]}  a6 {[%clk 0:02:56]} 4. Ba4 {[%clk 0:03:01]}  Nf6 {[%clk 0:02:56]} 5. O-O {[%clk 0:03:00]}  Be7 {[%clk 0:02:57]} 6. Re1 {[%clk 0:03:00]}  b5 {[%clk 0:02:57]} 7. Bb3 {[%clk 0:03:01]}  O-O {[%clk 0:02:58]} 8. a4 {[%clk 0:03:01]}  Rb8 {[%clk 0:02:56]} 9. d3 {[%clk 0:03:00]}  d6 {[%clk 0:02:54]} 10. c3 {[%clk 0:03:00]}  h6 {[%clk 0:02:53]} 11. Nbd2 {[%clk 0:03:00]}  Re8 {[%clk 0:02:52]} 12. Nf1 {[%clk 0:02:58]}  Bf8 {[%clk 0:02:53]} 13. Ng3 {[%clk 0:02:58]}  g6 {[%clk 0:02:53]} 14. h3 {[%clk 0:02:54]}  Be6 {[%clk 0:02:52]} 15. Bc2 {[%clk 0:02:50]}  Bg7 {[%clk 0:02:38]} 16. d4 {[%clk 0:02:50]}  Bd7 {[%clk 0:02:03]} 17. Be3 {[%clk 0:02:37]}  b4 {[%clk 0:01:56]} 18. a5 {[%clk 0:02:32]}  Nh7 {[%clk 0:01:37]} 19. Qd2 {[%clk 0:02:27]}  bxc3 {[%clk 0:01:37]} 20. bxc3 {[%clk 0:02:27]}  h5 {[%clk 0:01:28]} 21. Bd3 {[%clk 0:02:23]}  h4 {[%clk 0:01:17]} 22. Ne2 {[%clk 0:02:02]}  exd4 {[%clk 0:01:16]} 23. cxd4 {[%clk 0:02:01]}  Nb4 {[%clk 0:01:15]} 24. Bb1 {[%clk 0:01:46]}  Qc8 {[%clk 0:00:48]} 25. Nxh4 {[%clk 0:01:29]}  Bxh3 {[%clk 0:00:37]} 26. gxh3 {[%clk 0:01:30]}  Qxh3 {[%clk 0:00:38]} 27. Ng2 {[%clk 0:01:29]}  Rb5 {[%clk 0:00:22]} 28. Nef4 {[%clk 0:01:18]}  Qd7 {[%clk 0:00:17]} 29. Ra4 {[%clk 0:00:58]}  Ng5 {[%clk 0:00:15]} 30. Qd1 {[%clk 0:00:45]}  Nxe4 {[%clk 0:00:05]} 31. Bxe4 {[%clk 0:00:30]}  Rxe4 {[%clk 0:00:06]} 32. Qb1 {[%clk 0:00:26]}  Re8 {[%clk 0:00:05]} 33. Rxb4 {[%clk 0:00:26]}  Rg5 {[%clk 0:00:04]} 34. Rb8 {[%clk 0:00:20]}  Rxb8 {[%clk 0:00:01]} 35. Qxb8+ {[%clk 0:00:21]}  Kh7 {[%clk 0:00:01]} 36. Qb2 {[%clk 0:00:13]}  Qg4 {[%clk 0:00:00]} 37. Qe2 {[%clk 0:00:12]} 1-0


[Site "https://www.chess.com"]

[Event "Titled Tuesday Blitz November 14 Early 2023"]
[White "PoXerStar"]
[Black "Vila Dupla, Aurelio"]
[BlackFideId "2203383"]
[WhiteElo "2414"]
[BlackElo "2210"]
[Result "1-0"]
[Round "3"]
[TimeControl "180+1"]
[Date "2023.11.14"]
[WhiteClock "0:00:34"]
[BlackClock "0:01:11"]
[Board "207"]

1. c4 {[%clk 0:03:00]}  Nf6 {[%clk 0:02:59]} 2. g3 {[%clk 0:02:56]}  c6 {[%clk 0:02:57]} 3. Bg2 {[%clk 0:02:53]}  d5 {[%clk 0:02:57]} 4. Nf3 {[%clk 0:02:53]}  g6 {[%clk 0:02:57]} 5. O-O {[%clk 0:02:52]}  Bg7 {[%clk 0:02:57]} 6. b3 {[%clk 0:02:50]}  Ne4 {[%clk 0:02:51]} 7. d4 {[%clk 0:02:49]}  dxc4 {[%clk 0:02:51]} 8. bxc4 {[%clk 0:02:49]}  c5 {[%clk 0:02:52]} 9. Bb2 {[%clk 0:02:48]}  O-O {[%clk 0:02:51]} 10. Qc1 {[%clk 0:02:44]}  cxd4 {[%clk 0:02:30]} 11. Nxd4 {[%clk 0:02:30]}  Nxf2 {[%clk 0:01:56]} 12. Nb5 {[%clk 0:01:20]}  Ng4 {[%clk 0:01:45]} 13. Bxg7 {[%clk 0:00:49]}  Kxg7 {[%clk 0:01:42]} 14. Kh1 {[%clk 0:00:49]}  a6 {[%clk 0:01:35]} 15. Qb2+ {[%clk 0:00:48]}  Kg8 {[%clk 0:01:31]} 16. N5c3 {[%clk 0:00:36]}  Ne3 {[%clk 0:01:20]} 17. Nd2 {[%clk 0:00:36]}  Nxg2 {[%clk 0:01:16]} 18. Kxg2 {[%clk 0:00:35]}  Qxd2 {[%clk 0:01:11]} 19. Qxd2 {[%clk 0:00:34]} 1-0


[Site "https://www.chess.com"]

[Event "Titled Tuesday Blitz November 14 Early 2023"]
[White "Fernandez Sanchez, Mario Andres"]
[Black "Herman, Daniel"]
[WhiteFideId "6501621"]
[BlackFideId "30935008"]
[WhiteElo "2203"]
[BlackElo "2413"]
[Result "0-1"]
[Round "3"]
[TimeControl "180+1"]
[Date "2023.11.14"]
[WhiteClock "0:01:13"]
[BlackClock "0:00:56"]
[Board "208"]

1. d4 {[%clk 0:03:00]}  g6 {[%clk 0:03:00]} 2. Bf4 {[%clk 0:03:00]}  Bg7 {[%clk 0:03:01]} 3. Nc3 {[%clk 0:03:00]}  c5 {[%clk 0:02:54]} 4. e3 {[%clk 0:02:57]}  Nf6 {[%clk 0:02:50]} 5. h4 {[%clk 0:02:56]}  d5 {[%clk 0:02:44]} 6. dxc5 {[%clk 0:02:47]}  Nc6 {[%clk 0:02:42]} 7. Bb5 {[%clk 0:02:37]}  O-O {[%clk 0:02:40]} 8. h5 {[%clk 0:02:37]}  Bg4 {[%clk 0:02:38]} 9. f3 {[%clk 0:02:35]}  Qa5 {[%clk 0:02:00]} 10. g3 {[%clk 0:02:36]}  Ne4 {[%clk 0:01:46]} 11. Bxc6 {[%clk 0:02:29]}  Nxc3 {[%clk 0:01:13]} 12. bxc3 {[%clk 0:02:25]}  Qxc3+ {[%clk 0:01:06]} 13. Kf2 {[%clk 0:02:24]}  bxc6 {[%clk 0:00:59]} 14. Ne2 {[%clk 0:02:18]}  Qxa1 {[%clk 0:00:57]} 15. fxg4 {[%clk 0:02:18]}  Qxd1 {[%clk 0:00:56]} 16. Rxd1 {[%clk 0:02:19]}  e5 {[%clk 0:00:57]} 17. hxg6 {[%clk 0:02:14]}  fxg6 {[%clk 0:00:56]} 18. Kg2 {[%clk 0:02:10]}  exf4 {[%clk 0:00:56]} 19. Nxf4 {[%clk 0:02:10]}  Rae8 {[%clk 0:00:56]} 20. Rd3 {[%clk 0:01:13]}  Bh6 {[%clk 0:00:56]} 0-1


[Site "https://www.chess.com"]

[Event "Titled Tuesday Blitz November 14 Early 2023"]
[White "Marcziter, Dmitrii"]
[Black "thisjuan"]
[WhiteFideId "13900765"]
[WhiteElo "2406"]
[BlackElo "2176"]
[Result "1-0"]
[Round "3"]
[TimeControl "180+1"]
[Date "2023.11.14"]
[WhiteClock "0:00:19"]
[BlackClock "0:00:00"]
[Board "212"]

1. d4 {[%clk 0:02:31]}  Nf6 {[%clk 0:02:58]} 2. c4 {[%clk 0:02:27]}  e6 {[%clk 0:02:58]} 3. Nf3 {[%clk 0:02:23]}  Bb4+ {[%clk 0:02:57]} 4. Nbd2 {[%clk 0:02:22]}  Nc6 {[%clk 0:02:51]} 5. a3 {[%clk 0:02:20]}  Bxd2+ {[%clk 0:02:50]} 6. Bxd2 {[%clk 0:02:16]}  d6 {[%clk 0:02:49]} 7. Bf4 {[%clk 0:02:13]}  Qe7 {[%clk 0:02:45]} 8. e3 {[%clk 0:02:10]}  e5 {[%clk 0:02:41]} 9. Bg5 {[%clk 0:02:03]}  h6 {[%clk 0:02:39]} 10. Bh4 {[%clk 0:02:03]}  exd4 {[%clk 0:02:30]} 11. Nxd4 {[%clk 0:01:59]}  Bd7 {[%clk 0:02:22]} 12. Be2 {[%clk 0:01:51]}  g5 {[%clk 0:01:41]} 13. Bg3 {[%clk 0:01:49]}  O-O-O {[%clk 0:01:39]} 14. b4 {[%clk 0:01:40]}  Rde8 {[%clk 0:01:33]} 15. b5 {[%clk 0:01:32]}  Ne5 {[%clk 0:01:22]} 16. Qa4 {[%clk 0:01:24]}  Kb8 {[%clk 0:01:19]} 17. O-O {[%clk 0:01:13]}  h5 {[%clk 0:01:17]} 18. Bxe5 {[%clk 0:01:11]}  Qxe5 {[%clk 0:01:13]} 19. Nc6+ {[%clk 0:00:56]}  Bxc6 {[%clk 0:01:04]} 20. bxc6 {[%clk 0:00:55]}  Ng4 {[%clk 0:00:39]} 21. g3 {[%clk 0:00:53]}  a5 {[%clk 0:00:22]} 22. Rab1 {[%clk 0:00:48]}  b6 {[%clk 0:00:21]} 23. Rb5 {[%clk 0:00:46]}  Qe6 {[%clk 0:00:15]} 24. Qxa5 {[%clk 0:00:40]}  Ne5 {[%clk 0:00:11]} 25. Rxb6+ {[%clk 0:00:19]}  cxb6 {[%clk 0:00:08]} 26. Qxb6+ {[%clk 0:00:18]}  Kc8 {[%clk 0:00:09]} 27. Qb7+ {[%clk 0:00:18]}  Kd8 {[%clk 0:00:09]} 28. c7+ {[%clk 0:00:19]}  Ke7 {[%clk 0:00:09]} 29. c8=Q+ {[%clk 0:00:19]}  Kf6 {[%clk 0:00:09]} 30. Qxe6+ {[%clk 0:00:19]}  Rxe6 {[%clk 0:00:00]} 31. f4 {[%clk 0:00:19]} 1-0


[Site "https://www.chess.com"]

[Event "Titled Tuesday Blitz November 14 Early 2023"]
[White "UK_23"]
[Black "Feliz Dotel, Dewar Bienvenido"]
[BlackFideId "6402801"]
[WhiteElo "2405"]
[BlackElo "2153"]
[Result "1-0"]
[Round "3"]
[TimeControl "180+1"]
[Date "2023.11.14"]
[WhiteClock "0:00:32"]
[BlackClock "0:00:00"]
[Board "213"]

1. e4 {[%clk 0:02:57]}  e5 {[%clk 0:02:59]} 2. Nf3 {[%clk 0:02:57]}  Nc6 {[%clk 0:02:59]} 3. Bc4 {[%clk 0:02:58]}  Nf6 {[%clk 0:02:59]} 4. d3 {[%clk 0:02:58]}  Be7 {[%clk 0:02:58]} 5. O-O {[%clk 0:02:58]}  d6 {[%clk 0:02:58]} 6. a4 {[%clk 0:02:58]}  O-O {[%clk 0:02:57]} 7. Nc3 {[%clk 0:02:55]}  Na5 {[%clk 0:02:56]} 8. h3 {[%clk 0:02:48]}  Nxc4 {[%clk 0:02:55]} 9. dxc4 {[%clk 0:02:48]}  c6 {[%clk 0:02:55]} 10. b3 {[%clk 0:02:47]}  Be6 {[%clk 0:02:55]} 11. Qd3 {[%clk 0:02:43]}  Nd7 {[%clk 0:02:52]} 12. Ba3 {[%clk 0:02:41]}  c5 {[%clk 0:02:16]} 13. Nd5 {[%clk 0:02:28]}  f5 {[%clk 0:02:05]} 14. Nxe7+ {[%clk 0:02:21]}  Qxe7 {[%clk 0:02:05]} 15. Rad1 {[%clk 0:02:22]}  fxe4 {[%clk 0:02:03]} 16. Qxe4 {[%clk 0:02:21]}  Bf5 {[%clk 0:01:52]} 17. Qd5+ {[%clk 0:02:17]}  Kh8 {[%clk 0:01:51]} 18. Qxd6 {[%clk 0:02:16]}  Rae8 {[%clk 0:01:35]} 19. Qxe7 {[%clk 0:01:44]}  Rxe7 {[%clk 0:01:36]} 20. Rd2 {[%clk 0:01:44]}  b6 {[%clk 0:01:33]} 21. Bb2 {[%clk 0:01:34]}  Bxh3 {[%clk 0:01:24]} 22. Nxe5 {[%clk 0:01:32]}  Nxe5 {[%clk 0:01:21]} 23. Bxe5 {[%clk 0:01:29]}  Rxe5 {[%clk 0:01:22]} 24. gxh3 {[%clk 0:01:28]}  h6 {[%clk 0:01:17]} 25. Rfd1 {[%clk 0:01:17]}  Rf3 {[%clk 0:01:12]} 26. Kg2 {[%clk 0:01:15]}  Ref5 {[%clk 0:01:12]} 27. Re1 {[%clk 0:01:14]}  Rf7 {[%clk 0:01:04]} 28. a5 {[%clk 0:01:03]}  Kh7 {[%clk 0:00:58]} 29. a6 {[%clk 0:01:02]}  R3f4 {[%clk 0:00:39]} 30. Re8 {[%clk 0:01:00]}  R7f5 {[%clk 0:00:38]} 31. Re7 {[%clk 0:00:58]}  Rg5+ {[%clk 0:00:38]} 32. Kf1 {[%clk 0:00:56]}  Rh5 {[%clk 0:00:21]} 33. Rxa7 {[%clk 0:00:51]}  Rxh3 {[%clk 0:00:21]} 34. Rb7 {[%clk 0:00:44]}  Rh1+ {[%clk 0:00:20]} 35. Kg2 {[%clk 0:00:43]}  Ra1 {[%clk 0:00:07]} 36. a7 {[%clk 0:00:44]}  Rf8 {[%clk 0:00:05]} 37. Rdd7 {[%clk 0:00:44]}  Ra8 {[%clk 0:00:05]} 38. Rxg7+ {[%clk 0:00:43]}  Kh8 {[%clk 0:00:06]} 39. Rgc7 {[%clk 0:00:33]}  Kg8 {[%clk 0:00:00]} 40. Rb8+ {[%clk 0:00:32]} 1-0


[Site "https://www.chess.com"]

[Event "Titled Tuesday Blitz November 14 Early 2023"]
[White "Semenova, Alina"]
[Black "Nastase, Robert-Paul"]
[WhiteFideId "24113875"]
[BlackFideId "1221175"]
[WhiteElo "2173"]
[BlackElo "2404"]
[Result "0-1"]
[Round "3"]
[TimeControl "180+1"]
[Date "2023.11.14"]
[WhiteClock "0:00:00"]
[BlackClock "0:00:12"]
[Board "214"]

1. e4 {[%clk 0:02:46]}  a6 {[%clk 0:02:50]} 2. d4 {[%clk 0:02:45]}  c6 {[%clk 0:02:49]} 3. Nf3 {[%clk 0:02:44]}  d5 {[%clk 0:02:50]} 4. exd5 {[%clk 0:02:44]}  cxd5 {[%clk 0:02:50]} 5. Bd3 {[%clk 0:02:44]}  Nc6 {[%clk 0:02:50]} 6. O-O {[%clk 0:02:45]}  g6 {[%clk 0:02:51]} 7. c3 {[%clk 0:02:43]}  Bg7 {[%clk 0:02:51]} 8. Bf4 {[%clk 0:02:43]}  Nf6 {[%clk 0:02:51]} 9. h3 {[%clk 0:02:43]}  O-O {[%clk 0:02:52]} 10. Nbd2 {[%clk 0:02:43]}  Re8 {[%clk 0:02:49]} 11. Re1 {[%clk 0:02:43]}  Nd7 {[%clk 0:02:39]} 12. a4 {[%clk 0:02:40]}  e5 {[%clk 0:02:37]} 13. dxe5 {[%clk 0:02:40]}  Ndxe5 {[%clk 0:02:38]} 14. Nxe5 {[%clk 0:02:37]}  Nxe5 {[%clk 0:02:39]} 15. Bc2 {[%clk 0:02:31]}  Bd7 {[%clk 0:02:01]} 16. Nb3 {[%clk 0:02:29]}  Bc6 {[%clk 0:01:52]} 17. Nd4 {[%clk 0:02:27]}  Nc4 {[%clk 0:01:52]} 18. b3 {[%clk 0:02:21]}  Nd6 {[%clk 0:01:49]} 19. Rxe8+ {[%clk 0:01:50]}  Nxe8 {[%clk 0:01:50]} 20. Qe2 {[%clk 0:01:41]}  Rc8 {[%clk 0:01:50]} 21. Re1 {[%clk 0:01:37]}  Bd7 {[%clk 0:01:43]} 22. Qe3 {[%clk 0:01:33]}  Nf6 {[%clk 0:01:33]} 23. f3 {[%clk 0:01:21]}  Qa5 {[%clk 0:01:30]} 24. b4 {[%clk 0:01:16]}  Qd8 {[%clk 0:01:26]} 25. Bb3 {[%clk 0:00:51]}  a5 {[%clk 0:01:18]} 26. b5 {[%clk 0:00:50]}  Qb6 {[%clk 0:01:14]} 27. Kh1 {[%clk 0:00:31]}  Qc5 {[%clk 0:00:58]} 28. Ne2 {[%clk 0:00:27]}  Qa3 {[%clk 0:00:29]} 29. Bc2 {[%clk 0:00:24]}  Re8 {[%clk 0:00:25]} 30. Qd2 {[%clk 0:00:23]}  Nh5 {[%clk 0:00:24]} 31. Bh2 {[%clk 0:00:19]}  Qb2 {[%clk 0:00:20]} 32. Qd3 {[%clk 0:00:09]}  Bf5 {[%clk 0:00:19]} 33. Qxd5 {[%clk 0:00:06]}  Qxc2 {[%clk 0:00:18]} 34. Qxb7 {[%clk 0:00:04]}  Rxe2 {[%clk 0:00:17]} 35. Rxe2 {[%clk 0:00:05]}  Qxe2 {[%clk 0:00:17]} 36. Qb8+ {[%clk 0:00:04]}  Bf8 {[%clk 0:00:17]} 37. b6 {[%clk 0:00:02]}  Qe1+ {[%clk 0:00:13]} 38. Bg1 {[%clk 0:00:02]}  Ng3+ {[%clk 0:00:14]} 39. Kh2 {[%clk 0:00:01]}  Nf1+ {[%clk 0:00:14]} 40. Kh1 {[%clk 0:00:01]}  Qg3 {[%clk 0:00:12]} 41. Qxg3 {[%clk 0:00:01]}  Nxg3+ {[%clk 0:00:13]} 42. Kh2 {[%clk 0:00:01]}  Bd6 {[%clk 0:00:13]} 43. Bc5 {[%clk 0:00:00]}  Bxc5 {[%clk 0:00:12]} 0-1


[Site "https://www.chess.com"]

[Event "Titled Tuesday Blitz November 14 Early 2023"]
[White "Sivanandan, Bodhana"]
[Black "Kulkarni, Rakesh"]
[WhiteFideId "497592"]
[BlackFideId "5037077"]
[WhiteElo "2152"]
[BlackElo "2403"]
[Result "0-1"]
[Round "3"]
[TimeControl "180+1"]
[Date "2023.11.14"]
[WhiteClock "0:00:42"]
[BlackClock "0:00:22"]
[Board "215"]

1. d4 {[%clk 0:02:59]}  Nf6 {[%clk 0:02:59]} 2. Nf3 {[%clk 0:02:58]}  c5 {[%clk 0:02:58]} 3. d5 {[%clk 0:02:57]}  e6 {[%clk 0:02:58]} 4. c4 {[%clk 0:02:56]}  b5 {[%clk 0:02:59]} 5. b3 {[%clk 0:02:53]}  bxc4 {[%clk 0:02:58]} 6. bxc4 {[%clk 0:02:53]}  exd5 {[%clk 0:02:53]} 7. cxd5 {[%clk 0:02:53]}  d6 {[%clk 0:02:49]} 8. Nc3 {[%clk 0:02:52]}  g6 {[%clk 0:02:48]} 9. Bg5 {[%clk 0:02:49]}  Bg7 {[%clk 0:02:48]} 10. e3 {[%clk 0:02:39]}  O-O {[%clk 0:02:47]} 11. Bc4 {[%clk 0:02:36]}  Nbd7 {[%clk 0:02:47]} 12. O-O {[%clk 0:02:35]}  Nb6 {[%clk 0:02:45]} 13. Bb3 {[%clk 0:02:34]}  h6 {[%clk 0:02:42]} 14. Bh4 {[%clk 0:02:31]}  Bb7 {[%clk 0:02:43]} 15. e4 {[%clk 0:02:27]}  Re8 {[%clk 0:02:40]} 16. Bxf6 {[%clk 0:02:24]}  Qxf6 {[%clk 0:02:37]} 17. Rc1 {[%clk 0:02:21]}  Qf4 {[%clk 0:02:28]} 18. Qd2 {[%clk 0:02:15]}  Qg4 {[%clk 0:02:16]} 19. Nb5 {[%clk 0:02:02]}  Rad8 {[%clk 0:02:00]} 20. Rfe1 {[%clk 0:01:46]}  Rxe4 {[%clk 0:01:53]} 21. Nxa7 {[%clk 0:01:45]}  Rxe1+ {[%clk 0:01:49]} 22. Rxe1 {[%clk 0:01:44]}  c4 {[%clk 0:01:48]} 23. Bd1 {[%clk 0:01:43]}  Bxd5 {[%clk 0:01:47]} 24. h3 {[%clk 0:01:39]}  Qd7 {[%clk 0:01:42]} 25. Qa5 {[%clk 0:01:35]}  Qb7 {[%clk 0:01:12]} 26. Nb5 {[%clk 0:01:30]}  Bc6 {[%clk 0:00:59]} 27. a4 {[%clk 0:01:24]}  d5 {[%clk 0:00:59]} 28. Nfd4 {[%clk 0:01:21]}  Bxb5 {[%clk 0:00:55]} 29. Nxb5 {[%clk 0:01:19]}  d4 {[%clk 0:00:54]} 30. Bf3 {[%clk 0:01:19]}  Qb8 {[%clk 0:00:52]} 31. Qb4 {[%clk 0:01:13]}  d3 {[%clk 0:00:51]} 32. a5 {[%clk 0:01:13]}  Nd5 {[%clk 0:00:35]} 33. Qxc4 {[%clk 0:01:11]}  Nf4 {[%clk 0:00:34]} 34. a6 {[%clk 0:01:09]}  d2 {[%clk 0:00:28]} 35. Rd1 {[%clk 0:01:09]}  Qe5 {[%clk 0:00:25]} 36. a7 {[%clk 0:01:05]}  Qe1+ {[%clk 0:00:23]} 37. Kh2 {[%clk 0:01:05]}  Be5 {[%clk 0:00:24]} 38. a8=Q {[%clk 0:00:51]}  Rxa8 {[%clk 0:00:15]} 39. Bxa8 {[%clk 0:00:50]}  Ne2+ {[%clk 0:00:15]} 40. f4 {[%clk 0:00:44]}  Bxf4+ {[%clk 0:00:14]} 41. Qxf4 {[%clk 0:00:43]}  Nxf4 {[%clk 0:00:14]} 42. Rxe1 {[%clk 0:00:42]}  dxe1=Q {[%clk 0:00:15]} 43. Bf3 {[%clk 0:00:41]}  Ne2 {[%clk 0:00:14]} 44. Bxe2 {[%clk 0:00:41]}  Qxe2 {[%clk 0:00:14]} 45. Nd4 {[%clk 0:00:41]}  Qe5+ {[%clk 0:00:15]} 46. Kh1 {[%clk 0:00:41]}  Qxd4 {[%clk 0:00:15]} 47. Kh2 {[%clk 0:00:40]}  Kg7 {[%clk 0:00:15]} 48. g3 {[%clk 0:00:40]}  f5 {[%clk 0:00:16]} 49. h4 {[%clk 0:00:40]}  f4 {[%clk 0:00:16]} 50. gxf4 {[%clk 0:00:40]}  Qxf4+ {[%clk 0:00:17]} 51. Kh3 {[%clk 0:00:40]}  Qf3+ {[%clk 0:00:17]} 52. Kh2 {[%clk 0:00:40]}  Qg4 {[%clk 0:00:17]} 53. Kh1 {[%clk 0:00:40]}  h5 {[%clk 0:00:18]} 54. Kh2 {[%clk 0:00:40]}  Kf6 {[%clk 0:00:19]} 55. Kh1 {[%clk 0:00:40]}  Kf5 {[%clk 0:00:20]} 56. Kh2 {[%clk 0:00:41]}  Kf4 {[%clk 0:00:21]} 57. Kh1 {[%clk 0:00:42]}  Kf3 {[%clk 0:00:21]} 58. Kh2 {[%clk 0:00:42]}  Qg2# {[%clk 0:00:22]} 0-1


[Site "https://www.chess.com"]